Cogmind - Beta 16 @@@ ROGUE MODE // 2025.12.03 @ 11:51:18 Player: most_lamentable Result: Destroyed self with Improved Grenade Launcher Performance ------------- Evolutions (2) 1000 Regions Visited (3) 600 Robots Destroyed (76) 380 Value Destroyed (1838) 1838 Prototype IDs (4) 80 Alien Tech Used (0) 0 Bonus (105) 105 TOTAL SCORE: 4003 Bonus ------- High Alert Combat Kills 105 Cogmind --------- Core Integrity 0/550 Matter 12/300 Energy 260/275 System Corruption 0% Temperature Cool (0) Movement Treading (269) Ox2 Location -8/Materials Parts ------- > --- POWER (1) -------- Deuterium Engine > --- PROPULSION (5) --- Light Treads Light Treads Armored Treads > --- UTILITY (3) ------ Cargo Storage Unit > --- WEAPON (2) ------- Precision Beam Rifle Improved Grenade Launcher > --- INVENTORY (30) --- Deuterium Engine Nuclear Core Light Nuclear Core Heat Sink Cargo Storage Unit Cargo Storage Unit Cargo Storage Unit Compact Battery (200) Advanced Visual Processing Unit Sensor Array Active Sensor Suite Seismic Detector ECM Suite System Shield Heavy EM Shotgun Heavy Particle Cannon Gauss Rifle Improved Grenade Launcher Improved Grenade Launcher Scythe Peak State ------------ > --- POWER ------------ Deuterium Engine > --- PROPULSION ------- VSS Leg VSS Leg VSS Leg VSS Leg VSS Leg > --- UTILITY ---------- Cargo Storage Unit Hardened Medium Armor Plating > --- WEAPON ----------- Precision Beam Rifle Improved Grenade Launcher > --- INVENTORY -------- Deuterium Engine Nuclear Core Light Nuclear Core Light Treads Light Treads Light Treads Light Treads Light Treads Armored Treads Improved Carbon-fiber Leg Wheel Heat Sink Cargo Storage Unit Cargo Storage Unit Cargo Storage Unit Compact Battery Advanced Visual Processing Unit Sensor Array Active Sensor Suite Seismic Detector ECM Suite System Shield Gauss Rifle Plasma Cutter Scythe [Rating: 37] Favorites ----------- Power Deuterium Engine Engine Deuterium Engine Propulsion Advanced Treads Treads Advanced Treads Leg VSS Leg Utility Cargo Storage Unit Device Seismic Detector Storage Cargo Storage Unit Protection Hardened Medium Armor Plating Weapon Assault Cannon Energy Gun Precision Beam Rifle Ballistic Gun Enhanced Autogun Ballistic Cannon Assault Cannon Launcher Rocket Launcher Build | -11 -10 -9 -8 ------- Run | Yrd Mat Mat Mat Slots Evolved 4 | . . 2 2 Power . | . . . . Propulsion 3 | . . 1 2 Utility 1 | . . 1 . Weapon . | . . . . Parts Attached 46 | 6 2 10 28 Power 4 | 1 . 2 1 Engine 4 | 1 . 2 1 Core . | . . . . Reactor . | . . . . Propulsion 20 | 2 . 3 15 Treads 13 | . . 3 10 Leg 7 | 2 . . 5 Wheel . | . . . . Hover . | . . . . Flight . | . . . . Utility 8 | 1 1 2 4 Device 4 | . 1 1 2 Storage 2 | 1 . 1 . Processor . | . . . . Hackware . | . . . . Protection 2 | . . . 2 Artifact . | . . . . Weapon 14 | 2 1 3 8 Energy Gun 3 | 1 . 1 1 Energy Cannon . | . . . . Ballistic Gun 4 | 1 . . 3 Ballistic Cannon 3 | . . 1 2 Launcher 4 | . 1 1 2 Special Weapon . | . . . . Impact Weapon . | . . . . Slashing Weapon . | . . . . Piercing Weapon . | . . . . Special Melee Weapon . | . . . . Unidentified Prototypes 3 | . . 1 2 Parts Lost 19 | . . . 19 Power 1 | . . . 1 Propulsion 10 | . . . 10 Utility 3 | . . . 3 Weapon 5 | . . . 5 Highest Loss Streak 6 | . . . 6 To Critical Strikes 1 | . . . 1 Average Backups 18 | 3 7 10 23 Power 2 | . 1 1 3 Propulsion 3 | 2 3 2 3 Utility 7 | . . 3 10 Weapon 4 | . 1 3 4 Tool/Special . | . . . . Unused Backups 38 | . 4 4 30 Power 6 | . 1 1 4 Propulsion 8 | . 3 2 3 Utility 12 | . . . 12 Weapon 11 | . . 1 10 Tool/Special 1 | . . . 1 Average Slot Usage (%) 84 | . 92 90 82 Engine 9 | . 14 11 8 Treads 26 | . . 22 30 Leg 11 | . 28 7 10 Device 5 | . 6 16 1 Storage 9 | . 14 11 9 Protection 3 | . . . 4 Energy Gun 4 | . 14 4 2 Ballistic Gun 2 | . 6 . 3 Ballistic Cannon 5 | . . 6 5 Launcher 6 | . 7 11 5 Peak Build Rating 37 | 6 7 23 37 Average Rating 24 | 4 6 17 28 On Entrance 9 | . 6 7 23 Avg Prop Armor Cover (%) . | . . . . Naked Turns . | . . . . Heaviest Build 166 | 14 16 159 166 Greatest Support 108 | 20 20 66 108 Greatest Overweight (x) 48 | . . 2 48 Average Overweight (x) . | . . . 1 Largest Inventory Capacity 30 | 8 8 30 30 Average Capacity 25 | 7 8 18 30 Most Carried 30 | 6 8 22 30 Average Carried 21 | 4 7 12 26 Final Capacity 30 | 8 8 30 30 Final Carried 25 | 6 8 22 25 Class Distribution -------------------- 78% | Hauler-Mutant 21% | Mutant Dominant Class ---------------- Mutant | -10/Materials Mutant | -9/Materials Hauler-Mutant | -8/Materials Resources | -11 -10 -9 -8 ----------- Run | Yrd Mat Mat Mat Matter Collected 1495 | 203 51 137 1104 Remotely . | . . . . Salvage Created 1735 | . 51 221 1463 Parts 145 | . 6 23 116 Haulers Intercepted 2 | . . . 2 Recyclers Shooed 2 | . . . 2 Parts Field Recycled . | . . . . Retrieved Matter . | . . . . Parts Self-Destructed . | . . . . Prevented . | . . . . Parts Restored . | . . . . Kills | -11 -10 -9 -8 ------- Run | Yrd Mat Mat Mat Combat Hostiles Destroyed 48 | . 3 4 41 Guns 16 | . 3 1 12 Cannons 16 | . . 3 13 AOE 16 | . . . 16 Classes Destroyed 13 | . 1 5 7 Worker 13 | . . 1 12 Builder 7 | . . 3 4 Tunneler 1 | . . . 1 Hauler 2 | . . . 2 Recycler 2 | . . 1 1 Watcher 3 | . . . 3 Swarmer 18 | . 3 . 15 Grunt 12 | . . 2 10 Brawler 2 | . . . 2 Duelist 2 | . . . 2 Sentry 7 | . . 2 5 Specialist 6 | . . . 6 Heavy 1 | . . . 1 Best Kill Streak 11 | . 3 6 11 Combat Bots Only 7 | . 3 2 7 Max Kills in Single Turn 4 | . 1 4 4 Gunslinging . | . . . . Exploded 3 | . . . 3 Melee . | . . . . Uniques/NPCs Destroyed . | . . . . Combat | -11 -10 -9 -8 -------- Run | Yrd Mat Mat Mat Hostile Shots Fired 334 | . 12 12 310 Missed 91 | . 2 5 84 Hits 243 | . 10 7 226 Projectile 243 | . 10 7 226 Critical Strikes 8 | . . . 8 Damage Taken 3771 | . 75 96 3600 Core 602 | . 36 . 566 Absorbed by Shields 197 | . . . 197 Core Remaining (%) 95 | 100 85 100 . Volleys Fired 144 | . 4 14 126 Largest 2 | . 2 2 2 Hottest 97 | . 60 70 97 Shots Fired 240 | . 8 18 214 Gun 90 | . 8 3 79 Cannon 114 | . . 11 103 Launcher 36 | . . 4 32 Special . | . . . . Kinetic 161 | . 4 11 146 Thermal 36 | . . . 36 Explosive 36 | . . 4 32 Electromagnetic 7 | . 4 3 . Robot Hit Streak 13 | . 1 4 13 Robot Miss Streak 5 | . 2 3 5 Penetration Max . | . . . . Secondary Targets 1 | . 1 . . Max Gunslinging Chain 1 | . 1 . . Shots Hit Robots 140 | . 4 8 128 Core Hits 112 | . 3 13 96 Critical Kills . | . . . . Critical Parts Destroyed 1 | . . . 1 Critical Strikes 11 | . . . 11 Burn 7 | . . . 7 Destroy 1 | . . . 1 Blast 3 | . . . 3 Melee Attacks . | . . . . Impact . | . . . . Slashing . | . . . . Piercing . | . . . . Sneak Attacks . | . . . . Combat Hostiles . | . . . . Follow-up Attacks . | . . . . Damage Inflicted 5375 | . 46 517 4812 Guns 1007 | . 46 12 949 Cannons 1576 | . . 131 1445 Explosions 2707 | . . 374 2333 Melee . | . . . . Ramming 85 | . . . 85 Kinetic 2105 | . 24 131 1950 Thermal 444 | . . . 444 Explosive 2707 | . . 374 2333 Electromagnetic 34 | . 22 12 . Impact . | . . . . Slashing . | . . . . Piercing . | . . . . Highest Corruption . | . . . . Average Corruption . | . . . . Corruption Purged . | . . . . Corruption Blocked . | . . . . Overload Shots . | . . . . Overflow Damage 303 | . . 11 292 Projectiles 42 | . . . 42 Explosions 261 | . . 11 250 Melee . | . . . . Knockbacks 12 | . . . 12 Impact 1 | . . . 1 Kinetic 10 | . . . 10 Secondary 1 | . . . 1 Self-Inflicted Damage 516 | . . . 516 Shots 14 | . . . 14 Rammed 1 | . . . 1 Targets Rammed 4 | . . . 4 Kicked . | . . . . Crushed 3 | . . . 3 Highest Temperature 203 | . . 4 203 Average Temperature 49 | . . 2 50 Received Heat Transfer 837 | . . 39 798 Siege Activations . | . . . . Martial Activations . | . . . . Shielding Activations . | . . . . Robots Disrupted . | . . . . Combat Hostiles . | . . . . Robots Corrupted . | . . . . Combat Hostiles . | . . . . Parts Fried . | . . . . Impact Corruptions . | . . . . Robots Melted . | . . . . Combat Hostiles . | . . . . Parts Melted 1 | . . . 1 Heat Transferred 1480 | . . . 1480 Parts Sabotaged . | . . . . Parts Stolen . | . . . . Parts Stripped . | . . . . Power Chain Reactions . | . . . . Alert | -11 -10 -9 -8 ------- Run | Yrd Mat Mat Mat Maximum Alert Level 3 | . . . 3 Low Security (%) 73 | 100 100 100 61 Level 1 9 | . . . 13 Level 2 13 | . . . 19 Level 3 3 | . . . 4 Level 4 . | . . . . Level 5 . | . . . . High Security . | . . . . Max Security . | . . . . Peak Influence 745 | . 70 146 745 Initial 38 | . . 3 38 Average 192 | . 26 84 250 Influence Increases 1785 | . 70 273 1442 Destroy 0b10 Robot/C 960 | . 60 80 820 Destroy 0b10 Robot/NC 140 | . . 25 115 Destroy Leader 230 | . 10 30 190 Successful Hack 8 | . . . 8 Disable Machine 120 | . . 75 45 Destroy Structure 222 | . . 33 189 Lose Combat Pursuer 105 | . . 30 75 Influence Decreases 1038 | . 60 191 787 Entered New Map 61 | . . 7 54 Time Decay 787 | . 60 184 543 Lost Part 190 | . . . 190 Squads Dispatched 11 | . . 1 10 Investigation 1 | . . . 1 Extermination . | . . . . Reinforcement 6 | . . 1 5 Assault 1 | . . . 1 Garrison 3 | . . . 3 Intercept . | . . . . Searches Triggered . | . . . . Construction Impeded 1 | . . 1 . Haulers Reinforced . | . . . . Active Scanning Responses . | . . . . Cargo Convoy Interrupts . | . . . . Stealth | -11 -10 -9 -8 --------- Run | Yrd Mat Mat Mat Distress Signals 3 | . . . 3 Communications Jammed . | . . . . Distress Signals . | . . . . Times Spotted 65 | . 3 7 55 Peak Tracking Total 6 | . 3 3 6 Tactical Retreats 5 | . . 1 4 Traps | -11 -10 -9 -8 ------- Run | Yrd Mat Mat Mat Traps Triggered 1 | . . . 1 Indirectly . | . . . . Trap Hack Attempts . | . . . . Triggered . | . . . . Disarmed . | . . . . Reprogrammed . | . . . . Reused . | . . . . Traps Extracted . | . . . . Installed . | . . . . Triggered . | . . . . Machines | -11 -10 -9 -8 ---------- Run | Yrd Mat Mat Mat Machines Disabled 8 | . . 5 3 Max in Single Turn 2 | . . 2 1 Machines Repaired . | . . . . Machines Dismantled . | . . . . Machines Sabotaged . | . . . . Overloaded Fab Kills . | . . . . Hacking | -11 -10 -9 -8 --------- Run | Yrd Mat Mat Mat Machines Accessed 13 | . 2 3 8 Terminals 10 | . 1 3 6 Fabricators . | . . . . Repair Stations . | . . . . Recycling Units 1 | . 1 . . Scanalyzers 2 | . . . 2 Garrison Access . | . . . . Total Hacks 27 | . 5 3 19 Successful 8 | . 1 . 7 Failed 18 | . 4 3 11 Catastrophic 6 | . 1 . 5 Database Lockouts 1 | . . . 1 Manual 11 | . 3 3 5 Terminals 18 | . 3 3 12 Fabricators . | . . . . Repair Stations . | . . . . Recycling Units 2 | . 2 . . Scanalyzers 7 | . . . 7 Garrison Access . | . . . . Terminal Hacks 2 | . . . 2 Level Access Points 1 | . . . 1 Branch Access Points 1 | . . . 1 Fabricator Hacks . | . . . . Repair Station Hacks . | . . . . Recycling Unit Hacks 1 | . 1 . . Report Inventory 1 | . 1 . . Scanalyzer 5 | . . . 5 Insert Component 2 | . . . 2 Analyze 1 | . . . 1 Retrieve Study 2 | . . . 2 Garrison Access Hacks . | . . . . Unauthorized Hacks . | . . . . Terminals . | . . . . Fabricators . | . . . . Repair Stations . | . . . . Recycling Units . | . . . . Scanalyzers . | . . . . Garrison Access . | . . . . Data Cores Recovered . | . . . . Used . | . . . . Hacking Detections 13 | . 2 3 8 Full Trace Events . | . . . . Feedback Events . | . . . . Feedback Blocked . | . . . . Robot Schematics Acquired . | . . . . Robots Built . | . . . . Authchips . | . . . . Time . | . . . . Total Robot Build Rating . | . . . . Part Schematics Acquired 1 | . . . 1 Parts Built . | . . . . Authchips . | . . . . Time . | . . . . Total Part Build Rating . | . . . . Part Studies Acquired 2 | . . . 2 Parts Repaired . | . . . . Time . | . . . . Parts Recycled . | . . . . Recycled Matter . | . . . . Retrieved Matter . | . . . . Retrieved Components . | . . . . Parts Scanalyzed 1 | . . . 1 Part Schematics Acquired 1 | . . . 1 Parts Damaged . | . . . . Bothacking | -11 -10 -9 -8 ------------ Run | Yrd Mat Mat Mat Used RIF Installer . | . . . . Robots Hacked . | . . . . Non-combat . | . . . . Combat . | . . . . Robot Hacks Applied . | . . . . Relay Couplers Released . | . . . . Fabnet Peak Effective % . | . . . . Robots Rewired . | . . . . Allies Hacked . | . . . . Hacks Repelled . | . . . . Allies | -11 -10 -9 -8 -------- Run | Yrd Mat Mat Mat Total Allies . | . . . . Largest Group . | . . . . Highest-Rated Group . | . . . . Highest-Rated Ally . | . . . . Total Orders . | . . . . Ally Attacks . | . . . . Total Damage . | . . . . Kills . | . . . . Allies Corrupted . | . . . . Allies Melted . | . . . . Intel | -11 -10 -9 -8 ------- Run | Yrd Mat Mat Mat Active Infowar (turns) 775 | . 91 453 231 Sensors 243 | . . 243 . Seismic 775 | . 91 453 231 Robot Analysis Total . | . . . . Derelict Logs Recovered . | . . . . Drone Launches . | . . . . Drone Recoveries . | . . . . Exploration | -11 -10 -9 -8 ------------- Run | Yrd Mat Mat Mat Turns Passed 2346 | 84 177 453 1632 Spaces Moved 909 | 61 127 208 513 Core 10 | 9 . . 1 Treads 525 | . . 111 414 Legs 374 | 52 127 97 98 Wheels . | . . . . Hover . | . . . . Flight . | . . . . Fastest Speed 50 | 50 120 120 191 Average Speed 195 | 109 120 179 231 Slowest Speed 2450 | 120 120 305 2450 Overloaded Moves . | . . . . Propulsion Burnouts . | . . . . Robots Hopped . | . . . . Potential Cave-ins 3 | . . . 3 Cave-ins Triggered 1 | . . . 1 Exploration Rate (%) 28 | 5 29 22 57 Regions Visited 3 Branch Regions . Pre-discovered Areas . | . . . . Known Exits Taken . | . . . . Unknown Exits Taken 3 | 1 1 1 . Scrap Searched . | . . . . Spaces Dug 6 | . . . 6 Terrain Destroyed 252 | . . 30 222 Melee . | . . . . Projectile 23 | . . 2 21 AOE 229 | . . 28 201 Terrain Rammed . | . . . . Walls Destroyed . | . . . . Machines Disabled . | . . . . Actions | -11 -10 -9 -8 --------- Run | Yrd Mat Mat Mat Total 1273 | 78 145 279 771 Wait 41 | . 1 7 33 Move 906 | 60 126 207 513 Hop . | . . . . Pick Up 80 | 12 6 23 39 Fast Attach 4 | . 2 1 1 Attach 39 | 6 . 4 29 Detach 7 | . 1 2 4 Swap 7 | . . 6 1 Drop 41 | . 5 15 21 Fire 144 | . 4 14 126 Melee . | . . . . Ram . | . . . . Kick . | . . . . Crush 4 | . . . 4 Escape Stasis . | . . . . Rewire . | . . . . Trap . | . . . . Miscellaneous . | . . . . Route ------- -11/Scrapyard -10/Materials -9/Materials -8/Materials (discovered 3 exits: Fac x3) History --------- Turn | Location | Event 6 | -11/Scrapyard | Discovered new exit (range 15) 85 | -11/Scrapyard | Entered Materials 258 | -10/Materials | Discovered new exit (range 4) 262 | -10/Materials | Entered another Materials area 262 | -9/Materials | Evolved 2 slots: Propulsion x1, Utility x1 317 | -9/Materials | Build established: Mutant 682 | -9/Materials | Discovered new exit (range 12) 715 | -9/Materials | Entered another Materials area 715 | -8/Materials | Evolved 2 slots: Propulsion x2 824 | -8/Materials | Build established: Hauler-Mutant 982 | -8/Materials | Crushed by falling debris 1094 | -8/Materials | Lost 4 parts (1n1u2w) 1420 | -8/Materials | Central database locked down 1590 | -8/Materials | Garrison activated, responded to threat 1659 | -8/Materials | Core integrity fell below 50% 1717 | -8/Materials | Lost 6 parts (1p3n1u1w) 1769 | -8/Materials | Found Prototype Device 2056 | -8/Materials | Core integrity fell below 20% 2090 | -8/Materials | Destroyed 7 combat bots 2166 | -8/Materials | Identified Active Sensor Suite 2304 | -8/Materials | Identified exit to Factory 2315 | -8/Materials | First assault squad dispatched 2347 | -8/Materials | Destroyed self with Improved Grenade Launcher Last Messages --------------- 02298_ The unstable cave ceiling collapses. 02298_ U-05 Engineer builds a Wall. 02304_ Connecting with Terminal... >>Access(Main) Found 3 level access points to Factory: (94,15) (18,6) (87,92) Map updated. 02304_ Connecting with Terminal... 02315_ ALERT: Unidentified disturbance in Zone 6F, assault force dispatched. 02335_ K-01 Serf cleans the Neutrino Reactor. 02340_ Slammed into K-01 Serf. 02340_ K-01 Serf destroyed. 02341_ Acquired 23 matter. 02347_ Destroyed Imp. Hover Unit. 02347_ Lgt. Treads+ destroyed. 02347_ Destroyed Lgt. Treads+. Map ----- +----------------------------------------------------+ | | | | | | | | | | | | | | | | | ?????????????????????????????????????????????????? | | ????????????????????????#????????????????????????? | | ???????????????????????? ????????????????????????? | | ??????????????????#####? """?????????????????????? | | ?????????????????? ? "T??????????????????????? | | ????????????????? ? ??????????????????###?? | | ?????